Cogmind - Beta 15 @@@ ROGUE MODE // 2025.09.12 @ 18:44:20 Player: winnking222 Result: Destroyed self via exploding Fusion Modulator Performance ------------- Evolutions (0) 0 Regions Visited (1) 200 Robots Destroyed (17) 85 Value Destroyed (409) 409 Prototype IDs (0) 0 Alien Tech Used (0) 0 Bonus (0) 0 TOTAL SCORE: 694 Bonus ------- None Cogmind --------- Core Integrity 0/250 Matter 300/300 Energy 250/250 System Corruption 0% Temperature Cool (12) Movement Treading (160) Location -10/Materials Parts ------- > --- POWER (1) -------- Ion Engine > --- PROPULSION (2) --- Light Treads Light Treads > --- UTILITY (2) ------ Improved Heat Sink Small Storage Unit > --- WEAPON (2) ------- Medium Laser Medium Laser > --- INVENTORY (8) ---- Ion Engine Aluminum Leg Compact Wheel High-capacity Matter Pod (192) Seismic Detector Light Armor Plating Particle Gun Grenade Launcher Peak State ------------ > --- POWER ------------ Ion Engine > --- PROPULSION ------- Aluminum Leg Aluminum Leg > --- UTILITY ---------- Small Storage Unit Improved Terrain Scanner > --- WEAPON ----------- Medium Laser Medium Laser > --- INVENTORY -------- Ion Engine Light Treads Light Treads Compact Wheel Compact Wheel Seismic Detector Seismic Detector Medium Laser [Rating: 9] Favorites ----------- Power Ion Engine Engine Ion Engine Propulsion Aluminum Leg Treads Light Treads Leg Aluminum Leg Utility Small Storage Unit Device Improved Terrain Scanner Storage Small Storage Unit Protection Light Armor Plating Weapon Medium Laser Energy Gun Medium Laser Launcher Grenade Launcher Build | -11 -10 ------- Run | Yrd Mat Slots Evolved . | . . Power . | . . Propulsion . | . . Utility . | . . Weapon . | . . Parts Attached 17 | 9 8 Power 2 | 1 1 Engine 2 | 1 1 Core . | . . Reactor . | . . Propulsion 4 | 2 2 Treads 2 | . 2 Leg 2 | 2 . Wheel . | . . Hover . | . . Flight . | . . Utility 7 | 4 3 Device 5 | 3 2 Storage 1 | 1 . Processor . | . . Hackware . | . . Protection 1 | . 1 Artifact . | . . Weapon 4 | 2 2 Energy Gun 3 | 2 1 Energy Cannon . | . . Ballistic Gun . | . . Ballistic Cannon . | . . Launcher 1 | . 1 Special Weapon . | . . Impact Weapon . | . . Slashing Weapon . | . . Piercing Weapon . | . . Special Melee Weapon . | . . Unidentified Prototypes . | . . Parts Lost 1 | . 1 Power . | . . Propulsion . | . . Utility . | . . Weapon 1 | . 1 Highest Loss Streak 1 | . 1 To Critical Strikes . | . . Average Backups 7 | 7 7 Power . | . 1 Propulsion 3 | 3 2 Utility 1 | 1 2 Weapon 1 | 1 1 Tool/Special . | . . Unused Backups 5 | . 5 Power 1 | . 1 Propulsion 3 | . 3 Utility 1 | . 1 Weapon . | . . Tool/Special . | . . Average Slot Usage (%) 100 | . 100 Engine 14 | . 14 Treads 16 | . 16 Leg 11 | . 11 Device 12 | . 12 Storage 14 | . 14 Protection 1 | . 1 Energy Gun 27 | . 27 Peak Build Rating 9 | 9 9 Average Rating 8 | 8 8 On Entrance 4 | . 8 Naked Turns . | . . Heaviest Build 17 | 15 17 Greatest Support 40 | 20 40 Greatest Overweight (x) . | . . Average Overweight (x) . | . . Largest Inventory Capacity 8 | 8 8 Average Capacity 7 | 7 8 Most Carried 8 | 8 8 Average Carried 7 | 7 7 Final Capacity 8 | 8 8 Final Carried 8 | 8 8 Class Distribution -------------------- 100% | Mutant Dominant Class ---------------- Mutant | -10/Materials Resources | -11 -10 ----------- Run | Yrd Mat Matter Collected 660 | 290 370 Remotely . | . . Salvage Created 754 | 251 503 Parts 32 | 13 19 Haulers Intercepted 2 | . 2 Recyclers Shooed . | . . Parts Field Recycled . | . . Retrieved Matter . | . . Parts Self-Destructed . | . . Prevented . | . . Kills | -11 -10 ------- Run | Yrd Mat Combat Hostiles Destroyed 14 | 5 9 Guns 12 | 5 7 AOE 2 | . 2 Classes Destroyed 6 | 3 3 Tunneler 4 | 4 . Hauler 2 | . 2 Recycler 1 | 1 . Watcher 1 | . 1 Grunt 9 | . 9 Assembled 5 | 5 . Best Kill Streak 5 | 3 5 Combat Bots Only 4 | 3 4 Max Kills in Single Turn 2 | 1 2 Gunslinging . | . . Exploded 1 | . 1 Melee . | . . Uniques/NPCs Destroyed . | . . Combat | -11 -10 -------- Run | Yrd Mat Hostile Shots Fired 83 | 19 64 Missed 22 | 6 16 Hits 61 | 13 48 Melee 3 | 3 . Projectile 58 | 10 48 Critical Strikes 3 | 1 2 Part Disruptions 1 | 1 . Damage Taken 977 | 203 774 Core 331 | 27 304 Absorbed by Shields . | . . Core Remaining (%) 89 | 89 . Volleys Fired 77 | 29 48 Largest 2 | 2 2 Hottest 100 | 100 100 Shots Fired 153 | 58 95 Gun 149 | 58 91 Cannon . | . . Launcher 4 | . 4 Special . | . . Kinetic . | . . Thermal 149 | 58 91 Explosive 4 | . 4 Electromagnetic . | . . Robot Hit Streak 9 | 6 9 Robot Miss Streak 3 | 3 3 Penetration Max . | . . Secondary Targets 1 | . 1 Max Gunslinging Chain 1 | . 1 Shots Hit Robots 82 | 24 58 Core Hits 42 | 16 26 Critical Kills . | . . Critical Parts Destroyed . | . . Critical Strikes 3 | . 3 Burn 3 | . 3 Melee Attacks . | . . Impact . | . . Slashing . | . . Piercing . | . . Sneak Attacks . | . . Combat Hostiles . | . . Follow-up Attacks . | . . Damage Inflicted 1233 | 301 932 Guns 1020 | 301 719 Cannons . | . . Explosions 208 | . 208 Melee . | . . Ramming 5 | . 5 Kinetic . | . . Thermal 1020 | 301 719 Explosive 208 | . 208 Electromagnetic . | . . Impact . | . . Slashing . | . . Piercing . | . . Highest Corruption . | . . Average Corruption . | . . Corruption Purged . | . . Corruption Blocked . | . . Overload Shots . | . . Overflow Damage . | . . Projectiles . | . . Explosions . | . . Melee . | . . Knockbacks . | . . Impact . | . . Kinetic . | . . Secondary . | . . Self-Inflicted Damage 111 | . 111 Shots 1 | . 1 Rammed 3 | . 3 Targets Rammed 3 | . 3 Kicked . | . . Crushed . | . . Highest Temperature 406 | 295 406 Average Temperature 136 | 99 175 Received Heat Transfer 597 | 180 417 Effects 4 | . 4 Shutdowns 1 | . 1 Matter Decay 1 | . 1 Short Circuit 2 | . 2 Siege Activations . | . . Martial Activations . | . . Shielding Activations . | . . Robots Disrupted . | . . Combat Hostiles . | . . Robots Corrupted . | . . Combat Hostiles . | . . Parts Fried . | . . Impact Corruptions . | . . Robots Melted . | . . Combat Hostiles . | . . Parts Melted 3 | . 3 Heat Transferred 3219 | 888 2331 Parts Sabotaged . | . . Parts Stolen . | . . Parts Stripped . | . . Power Chain Reactions . | . . Alert | -11 -10 ------- Run | Yrd Mat Maximum Alert Level . | . . Low Security (%) 100 | 100 100 Level 1 . | . . Level 2 . | . . Level 3 . | . . Level 4 . | . . Level 5 . | . . High Security . | . . Max Security . | . . Peak Influence 120 | 15 120 Initial . | . . Average 3 | . 42 Influence Increases 314 | 25 289 Destroy 0b10 Robot/C 180 | . 180 Destroy 0b10 Robot/NC 40 | 25 15 Destroy Leader 46 | . 46 Disable Machine 15 | . 15 Destroy Structure 18 | . 18 Lose Combat Pursuer 15 | . 15 Influence Decreases 209 | 25 184 Time Decay 199 | 25 174 Lost Part 10 | . 10 Squads Dispatched 1 | . 1 Investigation 1 | . 1 Extermination . | . . Reinforcement . | . . Assault . | . . Garrison . | . . Intercept . | . . Searches Triggered . | . . Construction Impeded . | . . Haulers Reinforced . | . . Active Scanning Responses . | . . Cargo Convoy Interrupts . | . . Stealth | -11 -10 --------- Run | Yrd Mat Distress Signals 1 | . 1 Communications Jammed . | . . Distress Signals . | . . Times Spotted 18 | 5 13 Peak Tracking Total 3 | 1 3 Tactical Retreats 1 | . 1 Traps | -11 -10 ------- Run | Yrd Mat Traps Triggered 1 | . 1 Indirectly . | . . Trap Hack Attempts . | . . Triggered . | . . Disarmed . | . . Reprogrammed . | . . Reused . | . . Traps Extracted . | . . Installed . | . . Triggered . | . . Machines | -11 -10 ---------- Run | Yrd Mat Machines Disabled 1 | . 1 Max in Single Turn 1 | . 1 Machines Repaired . | . . Machines Dismantled . | . . Machines Sabotaged . | . . Overloaded Fab Kills . | . . Hacking | -11 -10 --------- Run | Yrd Mat Machines Accessed 1 | . 1 Terminals 1 | . 1 Fabricators . | . . Repair Stations . | . . Recycling Units . | . . Scanalyzers . | . . Garrison Access . | . . Total Hacks 3 | . 3 Successful 1 | . 1 Failed 2 | . 2 Catastrophic . | . . Database Lockouts . | . . Manual 3 | . 3 Terminals 3 | . 3 Fabricators . | . . Repair Stations . | . . Recycling Units . | . . Scanalyzers . | . . Garrison Access . | . . Terminal Hacks . | . . Fabricator Hacks . | . . Repair Station Hacks . | . . Recycling Unit Hacks . | . . Scanalyzer . | . . Garrison Access Hacks . | . . Unauthorized Hacks 1 | . 1 Terminals 1 | . 1 Skim 1 | . 1 Fabricators . | . . Repair Stations . | . . Recycling Units . | . . Scanalyzers . | . . Garrison Access . | . . Data Cores Recovered . | . . Used . | . . Hacking Detections . | . . Full Trace Events . | . . Feedback Events . | . . Feedback Blocked . | . . Robot Schematics Acquired . | . . Robots Built . | . . Authchips . | . . Time . | . . Total Robot Build Rating . | . . Part Schematics Acquired . | . . Parts Built . | . . Authchips . | . . Time . | . . Total Part Build Rating . | . . Parts Repaired . | . . Time . | . . Parts Recycled . | . . Recycled Matter . | . . Retrieved Matter . | . . Retrieved Components . | . . Parts Scanalyzed . | . . Part Schematics Acquired . | . . Parts Damaged . | . . Bothacking | -11 -10 ------------ Run | Yrd Mat Used RIF Installer . | . . Robots Hacked . | . . Non-combat . | . . Combat . | . . Robot Hacks Applied . | . . Relay Couplers Released . | . . Fabnet Peak Effective % . | . . Robots Rewired . | . . Allies Hacked . | . . Hacks Repelled . | . . Allies | -11 -10 -------- Run | Yrd Mat Total Allies . | . . Largest Group . | . . Highest-Rated Group . | . . Highest-Rated Ally . | . . Total Orders . | . . Ally Attacks . | . . Total Damage . | . . Kills . | . . Allies Corrupted . | . . Allies Melted . | . . Intel | -11 -10 ------- Run | Yrd Mat Active Infowar (turns) 6091 | 5920 171 Terrain 5258 | 5258 . Seismic 833 | 662 171 Robot Analysis Total . | . . Derelict Logs Recovered . | . . Drone Launches . | . . Drone Recoveries . | . . Exploration | -11 -10 ------------- Run | Yrd Mat Turns Passed 6555 | 6009 546 Spaces Moved 1531 | 1350 181 Core 13 | 13 . Treads 110 | . 110 Legs 1408 | 1337 71 Wheels . | . . Hover . | . . Flight . | . . Fastest Speed 50 | 50 120 Average Speed 122 | 119 144 Slowest Speed 160 | 120 160 Overloaded Moves . | . . Propulsion Burnouts . | . . Robots Hopped . | . . Potential Cave-ins . | . . Cave-ins Triggered . | . . Exploration Rate (%) 66 | 93 40 Regions Visited 1 Branch Regions . Pre-discovered Areas . | . . Known Exits Taken . | . . Unknown Exits Taken 1 | 1 . Scrap Searched . | . . Spaces Dug . | . . Terrain Destroyed 16 | . 16 Melee . | . . Projectile . | . . AOE 16 | . 16 Terrain Rammed . | . . Walls Destroyed . | . . Machines Disabled . | . . Actions | -11 -10 --------- Run | Yrd Mat Total 6056 | 5687 369 Wait 4402 | 4289 113 Move 1530 | 1349 181 Hop . | . . Pick Up 18 | 11 7 Fast Attach 4 | 4 . Attach 6 | 3 3 Detach . | . . Swap 9 | 2 7 Drop 7 | . 7 Fire 77 | 29 48 Melee . | . . Ram . | . . Kick . | . . Crush 3 | . 3 Escape Stasis . | . . Rewire . | . . Trap . | . . Miscellaneous . | . . Route ------- -11/Scrapyard -10/Materials (discovered 1 exit: [*Mat]) History --------- Turn | Location | Event 9 | -11/Scrapyard | Discovered new exit (range 15) 5302 | -11/Scrapyard | Assembled infested the area 6010 | -11/Scrapyard | Entered Materials 6011 | -10/Materials | Build established: Mutant 6290 | -10/Materials | Core integrity fell below 50% 6494 | -10/Materials | Discovered new exit (range 16) 6505 | -10/Materials | Core integrity fell below 20% 6556 | -10/Materials | Destroyed self via exploding Fusion Modulator Last Messages --------------- Trojan loaded successfully. Testing... Terminal linked with 0 systems. Please expand to 4 more systems! 06510_ G-34 Mercenary suffers critical hit (Burn). 06516_ Sml. Laser melted. 06516_ G-34 Mercenary destroyed. 06516_ Switching to secondary target: G-47 Trooper. 06519_ G-47 Trooper suffers critical hit (Burn). 06520_ G-47 Trooper heat short circuits Aluminum Leg. 06522_ Imp. Heat Sink melted. 06522_ G-47 Trooper destroyed. 06525_ Acquired 59 matter. 06527_ Acquired 49 matter. 06529_ K-01 Serf collects debris. 06530_ Acquired Particle Gun. 06532_ K-01 Serf collects debris. 06550_ A-02 Transporter destroyed. 06554_ Acquired 52 matter. 06556_ Fusion Modulator explodes. Map ----- +----------------------------------------------------+ | | | | | | | | | | | | | | | | | | | | | | | | | ?????????????????????????????????????????????????? | | ?????????????????????????????????????????????????? | | ?????????????????????????????????????????????????? | | ?????????????????????????????????????????????????? | | ?????????????????????????????????????????????????? | | ?????????????????????????????????????????????????? | | ?????????????????????????????????????????????????? | | ????????????????????????????#####????????????????? | | ?????????????????????######## #????????????????? | | ?????????????????????# # < #???????????###### | | ?????????????????????# # #???????????# | | ?????????????????????# + #??#####????# | | ?????????????????????# # # #????# | | ?????????????????????# !!@! # + """]#????# | | ?????????????????????# !]! # # """ #????# | | ?????????????????????######## #??""" #????# " " | | ????????????????????????????# #???? #????# "R" | | ????????????????????????????# #??????#????# """ | | ????????????????????????????+ ###+#############+ | | ????????????????????????????# | | ????????????????????????????# = | | ????????????????????????????# | | ????????????????????????????# ##########+####### | | ???????????????????????????## #??# * # | | ???????????????????????????#T #??# = # | | ???????????????????????????## #### = * # | | ?????????????????????######## + # | | ?????????????? #### # | | ????????????????????######### #??# # | | ????????????????????????######+###?############### | | ????????????????????????# !#???????????#!! | | ????????????????????????# #???????????#!! | | ????????????????????????# #???????????#!! | | ????????????????????????# #???????????#!! | | ????????????????????????# #???????????#!! | | ????????????????????????# #???????????#!! = | | ????????????????????????# #???????????##### | | ????????????????????????# #???????????????# | +----------------------------------------------------+ Best States ------------- Heat Dissipation 39 Energy Generation 10 Energy Capacity 250 Matter Stores 300 Matter Capacity 300 Sight Range 16 Terrain Scan Range 16 Terrain Scan Density 10 Armor Coverage 150 Evasion (%) 55 Recoil Reduction 2 Item Schematics ----------------- None Robot Schematics ------------------ None Fabricated ------------ Nothing Repaired ---------- Nothing Alien Tech Used ----------------- None Achievements -------------- None Challenges ------------ None Game ------ Seed TiamatExperimentalThruster Manual? 0 Play Time 00:15:54 Cumulative 176.3 hours Start 2025.09.12 @ 18:31:30 End 2025.09.12 @ 18:44:20 Sessions 1 Manual Loads 0 Difficulty Rogue Special Mode None Game No. 245 Rogue 245 Adventurer 0 Explorer 0 Win Type - Total 2 Types 2/0/0/0/0/0/0/0/0/0 Lore% 72 Gallery% 69 Achievement% 60 Wizard Run 0 Options --------- Layout 0 ASCII 0 Keyboard 0 Movement Mouse Keybinds 0 Fullscreen 1 Font 16/SmallcapsGlow Map View 75x55 Zoom Use 0% Tactical HUD 1 Map Filters NONE Filters NONE Steam 1 RUN: 0b25c4c2-b739-4c78-bceb-b9fbb94515f1